Workbook

Sheet 5-Year Projections
A1: La Quinta Inn by Wyndham West Palm Beach — Five-Year Projections
B2: YE 2024 | D2: Year 1 | F2: Year 2 | H2: Year 3 | J2: Year 4 | L2: Year 5 | O2: DEAL SUMMARY
B3: Amount ($) | C3: % Rev | D3: Amount ($) | E3: % Rev | F3: Amount ($) | G3: % Rev | H3: Amount ($) | I3: % Rev | J3: Amount ($) | K3: % Rev | L3: Amount ($) | M3: % Rev | O3: List Price | P3: 13000000
A4: KEY OPERATING METRICS | O4: PIP Cost | P4: $25,000
A5: Occupancy | B5: 0.78 | D5: 0.8 | F5: 0.82 | H5: 0.835 | J5: 0.85 | L5: 0.865 | O5: Project Cost | P5: 13025000
A6: Average Daily Rate | B6: 114 | D6: 129 | F6: 134 | H6: 139 | J6: 139 | L6: 139 | O6: Project CAP Rate | P6: =D30/P5 -> 0.1504748148
A7: RevPAR | B7: =B5*B6 -> 88.92 | D7: =D5*D6 -> 103.2 | F7: =F5*F6 -> 109.88 | H7: =H5*H6 -> 116.065 | J7: =J5*J6 -> 118.15 | L7: =L5*L6 -> 120.235 | O7: Price Per Key | P7: =P3/P9 -> 114035.0877
A8: Available Rooms | B8: 41610 | D8: 41610 | F8: 41610 | H8: 41610 | J8: 41610 | L8: 41610 | O8: Project RRM | P8: =P5/D12 -> 3.033194913
A9: Occupied Rooms | B9: 32456 | D9: =P9*365*D5 -> 33288 | F9: 34120 | H9: 34744 | J9: 35369 | L9: 35993 | O9: Keys | P9: 114
A10: Revenue Per Room | B10: =B6*B5*365 -> 32455.8 | D10: =D6*D5*365 -> 37668 | F10: =F6*F5*365 -> 40106.2 | H10: =H6*H5*365 -> 42363.725 | J10: =J6*J5*365 -> 43124.75 | L10: =L6*L5*365 -> 43885.775 | O10: Loan Type | P10: SBA/Conventional
A11: REVENUE | O11: LTV | P11: 0.7
A12: Room Revenue | B12: 3687730 | C12: =B12/B14 -> 0.9878693195 | D12: =P9*365*D5*D6 -> 4294152 | E12: =D12/D14 -> 0.9892647609 | F12: =P9*365*F5*F6 -> 4572106.8 | G12: =F12/F14 -> 0.9894817003 | H12: =$P$9*365*H5*H6 -> 4829464.65 | I12: =H12/H14 -> 0.989683202 | J12: =$P$9*365*J5*J6 -> 4916221.5 | K12: =J12/J14 -> 0.9896832784 | L12: =$P$9*365*L5*L6 -> 5002978.35 | M12: =L12/L14 -> 0.9896831563 | O12: Equity Required | P12: =P5-P13 -> 3925000
A13: Other Revenue | B13: 45284 | C13: =B13/B14 -> 0.01213068046 | D13: 46599 | E13: =D13/D14 -> 0.01073523913 | F13: 48602 | G13: =F13/F14 -> 0.0105182997 | H13: 50344 | I13: =H13/H14 -> 0.01031679798 | J13: 51248 | K13: =J13/J14 -> 0.01031672162 | L13: 52153 | M13: =L13/L14 -> 0.0103168437 | O13: Mortgage Amount | P13: =P3*P11 -> 9100000
A14: Total Revenue | B14: =SUM(B12:B13) -> 3733014 | C14: 1 | D14: =SUM(D12:D13) -> 4340751 | E14: 1 | F14: =SUM(F12:F13) -> 4620708.8 | G14: 1 | H14: =SUM(H12:H13) -> 4879808.65 | I14: 1 | J14: =SUM(J12:J13) -> 4967469.5 | K14: 1 | L14: =SUM(L12:L13) -> 5055131.35 | M14: 1 | O14: Interest Rate | P14: 7.50%
A15: DEPARTMENTAL EXPENSES | O15: Amortization | P15: 25
A16: Room Expense | B16: =B14*C16 -> 721591.6062 | C16: 0.1933 | D16: =D14*E16 -> 839067.1683 | E16: 0.1933 | F16: =F14*G16 -> 893183.011 | G16: 0.1933 | H16: =H14*I16 -> 943267.012 | I16: 0.1933 | J16: =J14*K16 -> 960211.8544 | K16: 0.1933 | L16: =L14*M16 -> 977156.89 | M16: 0.1933 | O16: Annual Debt Service | P16: =PMT(P14/12, P15*12, P13)*12 -> -806978.3662
A17: Other Expense | B17: =B14*C17 -> 167985.63 | C17: 0.045 | D17: =D14*E17 -> 195333.795 | E17: 0.045 | F17: =F14*G17 -> 207931.896 | G17: 0.045 | H17: =H14*I17 -> 219591.3893 | I17: 0.045 | J17: =J14*K17 -> 223536.1275 | K17: 0.045 | L17: =L14*M17 -> 227480.9108 | M17: 0.045
A18: Total Departmental Expenses | B18: =SUM(B16:B17) -> 889577.2362 | C18: =C16+C17 -> 0.2383 | D18: 915379 | E18: 0.2383 | F18: 954724 | G18: 0.2383 | H18: 988950 | I18: 0.2383 | J18: 1006716 | K18: 0.2383 | L18: 1024481 | M18: 0.2383
A19: UNDISTRIBUTED OPERATING EXPENSES
A20: Administrative & General | B20: =B$14*C20 -> 156039.9852 | C20: 0.0418 | D20: =D$14*E20 -> 181443.3918 | E20: 0.0418 | F20: =F$14*G20 -> 193145.6278 | G20: 0.0418 | H20: =H$14*I20 -> 203976.0016 | I20: 0.0418 | J20: =J$14*K20 -> 207640.2251 | K20: 0.0418 | L20: =L$14*M20 -> 211304.4904 | M20: 0.0418
A21: Sales & Marketing | B21: 134388.504 | C21: 0.036 | D21: 156267.036 | E21: 0.036 | F21: 166345.5168 | G21: 0.036 | H21: 175673.1114 | I21: 0.036 | J21: 178828.902 | K21: 0.036 | L21: 181984.7286 | M21: 0.036
A22: Utilities | B22: 148947.2586 | C22: 0.0399 | D22: 173195.9649 | E22: 0.0399 | F22: 184366.2811 | G22: 0.0399 | H22: 194704.3651 | I22: 0.0399 | J22: 198202.0331 | K22: 0.0399 | L22: 201699.7409 | M22: 0.0399
A23: Repairs & Maintenance | B23: 192996.8238 | C23: 0.0517 | D23: 224416.8267 | E23: 0.0517 | F23: 238890.645 | G23: 0.0517 | H23: 252286.1072 | I23: 0.0517 | J23: 256818.1732 | K23: 0.0517 | L23: 261350.2908 | M23: 0.0517
A24: Franchise Fees | B24: 376661.1126 | C24: 0.1009 | D24: 437981.7759 | E24: 0.1009 | F24: 466229.5179 | G24: 0.1009 | H24: 492372.6928 | I24: 0.1009 | J24: 501217.6726 | K24: 0.1009 | L24: 510062.7532 | M24: 0.1009
A25: Total Undistributed Operating Expenses | B25: =SUM(B20:B24) -> 1009033.684 | C25: =SUM(C20:C24) -> 0.2703 | D25: =SUM(D20:D24) -> 1173304.995 | E25: =SUM(E20:E24) -> 0.2703 | F25: =SUM(F20:F24) -> 1248977.589 | G25: =SUM(G20:G24) -> 0.2703 | H25: =SUM(H20:H24) -> 1319012.278 | I25: =SUM(I20:I24) -> 0.2703 | J25: =SUM(J20:J24) -> 1342707.006 | K25: =SUM(K20:K24) -> 0.2703 | L25: =SUM(L20:L24) -> 1366402.004 | M25: =SUM(M20:M24) -> 0.2703
A26: FIXED EXPENSES
A27: Property Taxes & Insurance | B27: =B$14*C27 -> 251231.8422 | C27: 0.0673 | D27: =D$14*E27 -> 292132.5423 | E27: 0.0673 | F27: =F$14*G27 -> 310973.7022 | G27: 0.0673 | H27: =H$14*I27 -> 328411.1221 | I27: 0.0673 | J27: =J$14*K27 -> 334310.6974 | K27: 0.0673 | L27: =L$14*M27 -> 340210.3399 | M27: 0.0673
A28: Total Fixed Expenses | B28: 251231.8422 | C28: 0.0673 | D28: 292132.5423 | E28: 0.0673 | F28: 310973.7022 | G28: 0.0673 | H28: 328411.1221 | I28: 0.0673 | J28: 334310.6974 | K28: 0.0673 | L28: 340210.3399 | M28: 0.0673
A29: Total Expenses | B29: =SUM(B18+B25+B28) -> 2149842.763 | C29: =B29/B$14 -> 0.5759 | D29: =SUM(D18+D25+D28) -> 2380816.538 | E29: =D29/D$14 -> 0.5484803292 | F29: =SUM(F18+F25+F28) -> 2514675.291 | G29: =F29/F$14 -> 0.5442185171 | H29: =SUM(H18+H25+H28) -> 2636373.4 | I29: =H29/H$14 -> 0.5402616351 | J29: =SUM(J18+J25+J28) -> 2683733.703 | K29: =J29/J$14 -> 0.5402617375 | L29: =SUM(L18+L25+L28) -> 2731093.344 | M29: =L29/L$14 -> 0.5402615985
A30: Net Operating Income | B30: =B14-B29 -> 1583171.237 | C30: 0.4241 | D30: =D14-D29 -> 1959934.462 | E30: 0.4515196708 | F30: =F14-F29 -> 2106033.509 | G30: 0.4557814829 | H30: =H14-H29 -> 2243435.25 | I30: 0.4597383649 | J30: =J14-J29 -> 2283735.797 | K30: 0.4597382625 | L30: =L14-L29 -> 2324038.006 | M30: 0.4597384015
A31: VALUATION & RETURNS
A32: Projected Revenue Change | D32: 0.029 | F32: 0.043 | H32: 0.0358 | J32: 0.018 | L32: 0.0176
A33: Cap Rate | D33: =D30/$P$3 -> 0.1507641894 | F33: =F30/$P$3 -> 0.1620025776 | H33: =H30/$P$3 -> 0.1725719423 | J33: =J30/$P$3 -> 0.1756719844 | L33: =L30/$P$3 -> 0.1787721543
A34: Project Cap Rate | B34: 0.0758 | D34: =D30/$P$5 -> 0.1504748148 | F34: =F30/$P$5 -> 0.1616916322 | H34: =H30/$P$5 -> 0.1722407102 | J34: =J30/$P$5 -> 0.1753348021 | L34: =L30/$P$5 -> 0.1784290216
A35: Room Revenue Multiplier | B35: =$P$3/B12 -> 3.525203852 | D35: =$P$3/D12 -> 3.027373041 | F35: =$P$3/F12 -> 2.843328157 | H35: =$P$3/H12 -> 2.691809743 | J35: =$P$3/J12 -> 2.644307218 | L35: =$P$3/L12 -> 2.59845218
A36: Project RRM | B36: =$P$5/B12 -> 3.53198309 | D36: =$P$5/D12 -> 3.033194913 | F36: =$P$5/F12 -> 2.848796095 | H36: =$P$5/H12 -> 2.696986301 | J36: =$P$5/J12 -> 2.649392425 | L36: =$P$5/L12 -> 2.603449203
A37: Annual Debt Service | B37: -746455 | D37: =$P$16 -> -806978.3662 | F37: =$P$16 -> -806978.3662 | H37: =$P$16 -> -806978.3662 | J37: =$P$16 -> -806978.3662 | L37: =$P$16 -> -806978.3662
A38: Annual Cash Flow After Debt | B38: =B30+B37 -> 836716.2374 | D38: =D30+D37 -> 1152956.096 | F38: =F30+F37 -> 1299055.143 | H38: =H30+H37 -> 1436456.884 | J38: =J30+J37 -> 1476757.431 | L38: =L30+L37 -> 1517059.64
